Cogmind - Beta 15 @@@ ROGUE MODE // 2025.10.05 @ 12:29:47 Player: King Of Bel Result: Destroyed by as-12646 with Assembled Blade Performance ------------- Evolutions (0) 0 Regions Visited (2) 400 Robots Destroyed (1) 5 Value Destroyed (7) 7 Prototype IDs (0) 0 Alien Tech Used (0) 0 Bonus (0) 0 TOTAL SCORE: 412 Bonus ------- None Cogmind --------- Core Integrity 0/250 Matter 300/300 Energy 100/100 System Corruption 0% Temperature Cool (0) Movement Walking (120) Location -10/Mines Parts ------- > --- POWER (1) -------- (None) > --- PROPULSION (2) --- Aluminum Leg > --- UTILITY (2) ------ Small Storage Unit Improved Terrain Scanner > --- WEAPON (2) ------- (None) > --- INVENTORY (8) ---- Wheel Targeting Computer ECM Suite Assault Rifle Peak State ------------ > --- POWER ------------ Light Ion Engine > --- PROPULSION ------- Wheel Wheel > --- UTILITY ---------- Small Storage Unit Improved Terrain Scanner > --- WEAPON ----------- Medium Laser Light Assault Rifle > --- INVENTORY -------- Light Ion Engine Aluminum Leg Aluminum Leg Assault Rifle [Rating: 9] Favorites ----------- Power Light Ion Engine Engine Light Ion Engine Propulsion Wheel Leg Aluminum Leg Wheel Wheel Utility Small Storage Unit Device Improved Terrain Scanner Storage Small Storage Unit Weapon Medium Laser Energy Gun Medium Laser Ballistic Gun Light Assault Rifle Build | -11 -10 -10 ------- Run | Yrd Mat Min Slots Evolved . | . . . Power . | . . . Propulsion . | . . . Utility . | . . . Weapon . | . . . Parts Attached 10 | 7 . 3 Power 2 | 1 . 1 Engine 2 | 1 . 1 Core . | . . . Reactor . | . . . Propulsion 4 | 2 . 2 Treads . | . . . Leg 2 | . . 2 Wheel 2 | 2 . . Hover . | . . . Flight . | . . . Utility 2 | 2 . . Device 1 | 1 . . Storage 1 | 1 . . Processor . | . . . Hackware . | . . . Protection . | . . . Artifact . | . . . Weapon 2 | 2 . . Energy Gun 1 | 1 . . Energy Cannon . | . . . Ballistic Gun 1 | 1 . . Ballistic Cannon . | . . . Launcher . | . . . Special Weapon . | . . . Impact Weapon . | . . . Slashing Weapon . | . . . Piercing Weapon . | . . . Special Melee Weapon . | . . . Unidentified Prototypes . | . . . Parts Lost 5 | . . 5 Power 2 | . . 2 Propulsion 1 | . . 1 Utility . | . . . Weapon 2 | . . 2 Highest Loss Streak 3 | . . 3 To Critical Strikes . | . . . Average Backups 4 | 3 5 4 Power . | . 1 . Propulsion 1 | 1 2 1 Utility 1 | . 1 2 Weapon . | . 1 1 Tool/Special . | . . . Unused Backups 3 | . . 3 Power . | . . . Propulsion . | . . . Utility 2 | . . 2 Weapon 1 | . . 1 Tool/Special . | . . . Average Slot Usage (%) 94 | . 100 91 Engine 13 | . 14 12 Leg 8 | . . 13 Wheel 17 | . 28 11 Device 14 | . 14 14 Storage 14 | . 14 14 Energy Gun 13 | . 14 12 Ballistic Gun 12 | . 14 11 Peak Build Rating 9 | 9 9 9 Average Rating 8 | 5 9 8 On Entrance 6 | . 9 9 Naked Turns . | . . . Heaviest Build 12 | 12 12 12 Greatest Support 20 | 20 20 20 Greatest Overweight (x) 1 | . . 1 Average Overweight (x) . | . . . Largest Inventory Capacity 8 | 8 8 8 Average Capacity 7 | 7 8 8 Most Carried 6 | 5 6 6 Average Carried 4 | 3 5 4 Final Capacity 8 | 8 8 8 Final Carried 6 | 4 6 4 Class Distribution -------------------- 100% | Mutant Dominant Class ---------------- Mutant | -10/Materials Mutant | -10/Mines Resources | -11 -10 -10 ----------- Run | Yrd Mat Min Matter Collected 283 | 186 . 97 Remotely . | . . . Salvage Created 84 | 29 . 55 Parts 4 | 4 . . Haulers Intercepted . | . . . Recyclers Shooed . | . . . Parts Field Recycled . | . . . Retrieved Matter . | . . . Parts Self-Destructed . | . . . Prevented . | . . . Kills | -11 -10 -10 ------- Run | Yrd Mat Min Combat Hostiles Destroyed 4 | . . 4 Guns 4 | . . 4 Classes Destroyed 2 | 1 . 1 Tunneler 1 | 1 . . Assembled 4 | . . 4 Best Kill Streak 2 | 1 . 2 Combat Bots Only 2 | . . 2 Max Kills in Single Turn 1 | 1 . 1 Gunslinging . | . . . Exploded . | . . . Melee . | . . . Uniques/NPCs Destroyed . | . . . Combat | -11 -10 -10 -------- Run | Yrd Mat Min Hostile Shots Fired 71 | . 9 62 Missed 23 | . 3 20 Hits 48 | . 6 42 Melee 11 | . . 11 Projectile 37 | . 6 31 Critical Strikes 1 | . . 1 Part Disruptions 2 | . . 2 Damage Taken 762 | . 67 695 Core 267 | . 24 243 Absorbed by Shields . | . . . Core Remaining (%) 100 | 100 . . Volleys Fired 25 | 7 4 14 Largest 2 | 2 2 2 Hottest 70 | 70 70 70 Shots Fired 48 | 14 8 26 Gun 48 | 14 8 26 Cannon . | . . . Launcher . | . . . Special . | . . . Kinetic 23 | 7 4 12 Thermal 25 | 7 4 14 Explosive . | . . . Electromagnetic . | . . . Robot Hit Streak 2 | 2 1 2 Robot Miss Streak 5 | 3 5 5 Penetration Max . | . . . Secondary Targets . | . . . Shots Hit Robots 18 | 7 2 9 Core Hits 14 | 2 2 10 Critical Kills . | . . . Critical Parts Destroyed . | . . . Critical Strikes 2 | 2 . . Burn 2 | 2 . . Melee Attacks . | . . . Impact . | . . . Slashing . | . . . Piercing . | . . . Sneak Attacks . | . . . Combat Hostiles . | . . . Follow-up Attacks . | . . . Damage Inflicted 200 | 83 18 99 Guns 194 | 83 18 93 Cannons . | . . . Explosions . | . . . Melee . | . . . Ramming 6 | . . 6 Kinetic 83 | 21 18 44 Thermal 111 | 62 . 49 Explosive . | . . . Electromagnetic . | . . . Impact . | . . . Slashing . | . . . Piercing . | . . . Highest Corruption . | . . . Average Corruption . | . . . Corruption Purged . | . . . Corruption Blocked . | . . . Overload Shots . | . . . Overflow Damage . | . . . Projectiles . | . . . Explosions . | . . . Melee . | . . . Knockbacks . | . . . Impact . | . . . Kinetic . | . . . Secondary . | . . . Self-Inflicted Damage . | . . . Shots . | . . . Rammed . | . . . Targets Rammed 5 | . . 5 Kicked 5 | . . 5 Crushed . | . . . Highest Temperature 170 | 100 52 170 Average Temperature 50 | 54 22 55 Received Heat Transfer 436 | . 36 400 Siege Activations . | . . . Martial Activations . | . . . Shielding Activations . | . . . Robots Disrupted . | . . . Combat Hostiles . | . . . Robots Corrupted . | . . . Combat Hostiles . | . . . Parts Fried . | . . . Impact Corruptions . | . . . Robots Melted . | . . . Combat Hostiles . | . . . Parts Melted . | . . . Heat Transferred 481 | 333 . 148 Parts Sabotaged . | . . . Parts Stolen . | . . . Parts Stripped . | . . . Power Chain Reactions . | . . . Alert | -11 -10 -10 ------- Run | Yrd Mat Min Maximum Alert Level . | . . . Low Security (%) 100 | 100 100 100 Level 1 . | . . . Level 2 . | . . . Level 3 . | . . . Level 4 . | . . . Level 5 . | . . . High Security . | . . . Max Security . | . . . Peak Influence 5 | 5 . . Initial . | . . . Average . | . . . Influence Increases 5 | 5 . . Destroy 0b10 Robot/NC 5 | 5 . . Influence Decreases 5 | 5 . . Time Decay 5 | 5 . . Squads Dispatched 1 | . 1 . Investigation . | . . . Extermination . | . . . Reinforcement 1 | . 1 . Assault . | . . . Garrison . | . . . Intercept . | . . . Searches Triggered . | . . . Construction Impeded . | . . . Haulers Reinforced . | . . . Active Scanning Responses . | . . . Cargo Convoy Interrupts . | . . . Stealth | -11 -10 -10 --------- Run | Yrd Mat Min Distress Signals . | . . . Communications Jammed . | . . . Distress Signals . | . . . Times Spotted 14 | . 5 9 Peak Tracking Total 13 | . 4 13 Tactical Retreats 3 | . . 3 Traps | -11 -10 -10 ------- Run | Yrd Mat Min Traps Triggered . | . . . Indirectly . | . . . Trap Hack Attempts . | . . . Triggered . | . . . Disarmed . | . . . Reprogrammed . | . . . Reused . | . . . Traps Extracted . | . . . Installed . | . . . Triggered . | . . . Machines | -11 -10 -10 ---------- Run | Yrd Mat Min Machines Disabled . | . . . Max in Single Turn . | . . . Machines Repaired . | . . . Machines Dismantled . | . . . Machines Sabotaged . | . . . Overloaded Fab Kills . | . . . Hacking | -11 -10 -10 --------- Run | Yrd Mat Min Machines Accessed . | . . . Terminals . | . . . Fabricators . | . . . Repair Stations . | . . . Recycling Units . | . . . Scanalyzers . | . . . Garrison Access . | . . . Total Hacks . | . . . Successful . | . . . Failed . | . . . Catastrophic . | . . . Database Lockouts . | . . . Manual . | . . . Terminals . | . . . Fabricators . | . . . Repair Stations . | . . . Recycling Units . | . . . Scanalyzers . | . . . Garrison Access . | . . . Terminal Hacks . | . . . Fabricator Hacks . | . . . Repair Station Hacks . | . . . Recycling Unit Hacks . | . . . Scanalyzer . | . . . Garrison Access Hacks . | . . . Unauthorized Hacks . | . . . Terminals . | . . . Fabricators . | . . . Repair Stations . | . . . Recycling Units . | . . . Scanalyzers . | . . . Garrison Access . | . . . Data Cores Recovered . | . . . Used . | . . . Hacking Detections . | . . . Full Trace Events . | . . . Feedback Events . | . . . Feedback Blocked . | . . . Robot Schematics Acquired . | . . . Robots Built . | . . . Authchips . | . . . Time . | . . . Total Robot Build Rating . | . . . Part Schematics Acquired . | . . . Parts Built . | . . . Authchips . | . . . Time . | . . . Total Part Build Rating . | . . . Parts Repaired . | . . . Time . | . . . Parts Recycled . | . . . Recycled Matter . | . . . Retrieved Matter . | . . . Retrieved Components . | . . . Parts Scanalyzed . | . . . Part Schematics Acquired . | . . . Parts Damaged . | . . . Bothacking | -11 -10 -10 ------------ Run | Yrd Mat Min Used RIF Installer . | . . . Robots Hacked . | . . . Non-combat . | . . . Combat . | . . . Robot Hacks Applied . | . . . Relay Couplers Released . | . . . Fabnet Peak Effective % . | . . . Robots Rewired . | . . . Allies Hacked . | . . . Hacks Repelled . | . . . Allies | -11 -10 -10 -------- Run | Yrd Mat Min Total Allies . | . . . Largest Group . | . . . Highest-Rated Group . | . . . Highest-Rated Ally . | . . . Total Orders . | . . . Ally Attacks . | . . . Total Damage . | . . . Kills . | . . . Allies Corrupted . | . . . Allies Melted . | . . . Intel | -11 -10 -10 ------- Run | Yrd Mat Min Active Infowar (turns) 372 | 14 121 237 Terrain 372 | 14 121 237 Robot Analysis Total . | . . . Derelict Logs Recovered 1 | . . 1 Drone Launches . | . . . Drone Recoveries . | . . . Exploration | -11 -10 -10 ------------- Run | Yrd Mat Min Turns Passed 453 | 95 121 237 Spaces Moved 386 | 66 135 185 Core 2 | 2 . . Treads . | . . . Legs 82 | . . 82 Wheels 302 | 64 135 103 Hover . | . . . Flight . | . . . Fastest Speed 50 | 50 80 80 Average Speed 89 | 79 80 101 Slowest Speed 190 | 80 80 190 Overloaded Moves . | . . . Propulsion Burnouts . | . . . Robots Hopped . | . . . Potential Cave-ins . | . . . Cave-ins Triggered . | . . . Exploration Rate (%) 32 | 4 40 54 Regions Visited 2 Branch Regions 1 Pre-discovered Areas . | . . . Known Exits Taken . | . . . Unknown Exits Taken 2 | 1 1 . Scrap Searched 1 | . . 1 Spaces Dug . | . . . Terrain Destroyed . | . . . Melee . | . . . Projectile . | . . . AOE . | . . . Terrain Rammed . | . . . Walls Destroyed . | . . . Machines Disabled . | . . . Actions | -11 -10 -10 --------- Run | Yrd Mat Min Total 442 | 92 140 210 Wait 10 | 8 . 2 Move 384 | 65 134 185 Hop . | . . . Pick Up 7 | 5 2 . Fast Attach 6 | 6 . . Attach 4 | 1 . 3 Detach 1 | . . 1 Swap . | . . . Drop . | . . . Fire 25 | 7 4 14 Melee . | . . . Ram . | . . . Kick 5 | . . 5 Crush . | . . . Escape Stasis . | . . . Rewire . | . . . Trap . | . . . Miscellaneous . | . . . Route ------- -11/Scrapyard -10/Materials (discovered 2 exits: [*Mat] / [*Min]) -10/Mines History --------- Turn | Location | Event 2 | -11/Scrapyard | Met Revision 17 25 | -11/Scrapyard | Discovered new exit (range 16) 96 | -11/Scrapyard | Entered Materials 150 | -10/Materials | Discovered new exit (range 14) 212 | -10/Materials | Discovered new exit (range 7) 217 | -10/Materials | Entered Mines 228 | -10/Mines | Assembled infested the area 233 | -10/Mines | Assisted by a Guerilla fighting off Assembled 249 | -10/Mines | A weapon hastily lodged in a ceiling crevice suddenly fell to the ground 339 | -10/Mines | Build established: Mutant 376 | -10/Mines | Core integrity fell below 50% 418 | -10/Mines | Learned 8 Materials zone layouts 454 | -10/Mines | Core integrity fell below 20% 454 | -10/Mines | Destroyed by as-12646 with Assembled Blade Last Messages --------------- 00395_ R-06 Scavenger system terminally corrupted. 00400_ Extracted 24 matter. 00401_ U-05 Engineer lays Concrete. 00405_ U-05 Engineer builds a Wall. 00405_ Lgt. Assault Rifle destroyed. 00406_ Kicked U-05 Engineer. 00408_ Kicked K-01 Serf out of the way. 00417_ Aluminum Leg severed. 00418_ Acquired derelict log, extracted data. Data stored: Materials zone layouts (x8). 00427_ as-12646 sneak attacks. 00427_ T-07 Excavator destroyed. 00431_ Kicked as-22946. 00431_ Med. Laser destroyed. 00433_ Kicked as-22946 out of the way. 00434_ Lgt. Ion Engine destroyed. 00434_ Acquired 3 matter. 00449_ R-06 Scavenger shuts down. 00449_ as-12646 sneak attacks. 00449_ R-06 Scavenger destroyed. Map ----- +----------------------------------------------------+ | ????## = =%! ## #???????????? | | ?????# %%! * ### ### #??#????????? | | ????## = # # #???? ##??????????? | | ?#??# ## ### %# #???? ??????????? | | ##### ######?## ####=####? % ???????????? | | #?????#?# ##??# *!#?# ????????????? | | #?####?## ###?####%#?# #????????????? | | ### ### ### * ###???#?#=### #?????#??????? | | #?##### ###??#???# #????????????? | | ##???## ###??#?#?#####%#????????????? | | ##????# #?##???????## ####?????? ??? | | #?????# ## ##???#??#### ### #?? | | #?##??## #### ##????#?#### """???? | | ???????### #??## ##??????## ## """???? | | #????????# ##???####??????## ##????????? | | ?????????###??????#?#?#??## #####?????????? | | ?????#???????????????????# #####?#???????????? | | ??????#??????????#????#?## ##?????????#???????? | | ???????????????#????????#! ##?????#????????????? | | ????????????????????????#%=##???????????????????? | | ??????????#?????????????#! #????????????????????? | | ????????????????????????# a#?????????#??????????? | | ????????????????????????# #????????????????????? | | ?????????????#??????????# a#???#????????????????? | | ????????????????????????#a #?##?????????????????? | | ????????????????????????#@ #????????????????????? | | ????????????????????????# #????????????????????? | | ????????????????????????# #????????????????????? | | ????????????????????????# k#????????????????????? | | ????????????????????????# ????????????????????? | | ???????????????????????? ????????????????????? | | ????????????????????????#####???????????????????? | | ?????????????????????????????#??????????????????? | | ????????????????????????????????????????????????? | | ????????????????????????????????????????????????? | | ???????????????????????????????#????????????????? | | ????????????????????????????????????????????????? | | ????????????????????????????????????????????????? | | ????????????????????????????????????????????????? | | ????????????????????????????????????????????????? | | ????????????????????????????????????????????????? | | ????????????????????????????????????????????????? | | ????????????????????????????????????????????????? | | ????????????????????????????????????????????????? | | ????????????????????????????????????????????????? | | ????????????????????????????????????????????????? | | | | | | | | | +----------------------------------------------------+ Best States ------------- Heat Dissipation 25 Energy Generation 10 Energy Capacity 125 Matter Stores 300 Matter Capacity 300 Sight Range 16 Terrain Scan Range 16 Terrain Scan Density 10 Evasion (%) 55 Item Schematics ----------------- None Robot Schematics ------------------ None Fabricated ------------ Nothing Repaired ---------- Nothing Alien Tech Used ----------------- None Achievements -------------- None Challenges ------------ None Game ------ Seed ReactionExperimentalMembrane Manual? 0 Play Time 00:09:11 Cumulative 10.3 hours Start 2025.10.05 @ 12:23:07 End 2025.10.05 @ 12:29:47 Sessions 1 Manual Loads 0 Difficulty Rogue Special Mode None Game No. 31 Rogue 27 Adventurer 4 Explorer 0 Win Type - Total 0 Types 0/0/0/0/0/0/0/0/0/0 Lore% 11 Gallery% 16 Achievement% 18 Wizard Run 0 Options --------- Layout 0 ASCII 0 Keyboard 0 Movement Numpad Keybinds 0 Fullscreen 2 Font 36/Smallcaps Map View 76x50 Zoom Use 0% Tactical HUD 1 Map Filters NONE Filters NONE Steam 1 RUN: fd07c2a4-e8b2-4ee1-9d94-03b5b025f164